[Event "Skalica Open 2019"]
[Site "Skalica"]
[Date "2019.08.29"]
[Round "6.23"]
[White "Skreko, Igor"]
[Black "Krakovsky, Peter"]
[Result "1/2-1/2"]
[ECO "A10"]
[WhiteElo "1725"]
[BlackElo "1000"]
[Annotator "NA"]
[PlyCount "80"]
[EventDate "2019.08.25"]
[EventType "swiss"]
[EventCountry "SVK"]
[SourceTitle "playchess.com"]
[Source "ChessBase"]
[SourceQuality "1"]
[TimeControl "40/5400+30:1800+30"]

1. c4 {[%emt 0:00:00]} g6 2. Nc3 Bg7 {[%emt 0:00:56]} 3. g3 {[%emt 0:00:12]} Nf6 {[%emt 0:00:12]} 4. Bg2 {[%emt 0:00:05]} O-O {[%emt 0:00:17]} 5. Nf3 {[%emt 0:00:25]} d5 {[%emt 0:00:12]} 6. cxd5 {[%emt 0:00:27]} Nxd5 {[%emt 0:00:02]} 7. O-O {[%emt 0:01:37]} c6 {[%emt 0:00:23]} 8. e4 {[%emt 0:03:22]} Nb6 {[%emt 0:08:12]} 9. d4 {[%emt 0:12:44]} Bg4 {[%emt 0:02:23]} 10. Be3 {[%emt 0:01:10]} e6 {[%emt 0:00:40]} 11. h3 {[%emt 0:02:40]} Bxf3 {[%emt 0:00:39]} 12. Bxf3 {[%emt 0:00:05]} N8d7 {[%emt 0:00:48]} 13. Qe2 {[%emt 0:05:45]} Nf6 {[%emt 0:02:04]} 14. Rfd1 {[%emt 0:00:57]} Qe7 {[%emt 0:00:59]} 15. Rac1 {[%emt 0:02:39]} Rfd8 {[%emt 0:00:33]} 16. h4 {[%emt 0:02:10]} h5 {[%emt 0:02:29]} 17. Bg5 {[%emt 0:01:48]} e5 {[%emt 0:01:45]} 18. dxe5 {[%emt 0:01:56]} Qxe5 {[%emt 0:00:29]} 19. Rd3 {[%emt 0:07:14]} Rxd3 {[%emt 0:03:49]} 20. Qxd3 {[%emt 0:00:09]} Re8 {[%emt 0:00:10]} 21. Rd1 {[%emt 0:02:08]} Nfd7 {[%emt 0:11:23]} 22. Be3 {[%emt 0:07:56]} Qe6 {[%emt 0:14:39]} 23. Bd4 {[%emt 0:04:19]} Ne5 {[%emt 0:03:01]} 24. Qe2 {[%emt 0:04:23]} Nxf3+ {[%emt 0:06:09]} 25. Qxf3 {[%emt 0:00:08]} Bxd4 {[%emt 0:00:21]} 26. Rxd4 {[%emt 0:00:02]} Nc4 {[%emt 0:00:35]} 27. Qe2 {[%emt 0:01:54]} Ne5 {[%emt 0:01:16]} 28. Kg2 {[%emt 0:06:41]} Ng4 {[%emt 0:02:08]} 29. f3 {[%emt 0:02:13]} Ne5 {[%emt 0:01:37]} 30. Rd1 {[%emt 0:03:11]} Nc4 {[%emt 0:02:33]} 31. b3 {[%emt 0:02:30]} Ne5 {[%emt 0:00:38]} 32. Na4 {[%emt 0:01:16]} Qe7 {[%emt 0:02:01]} 33. Nb2 {[%emt 0:01:05]} Rd8 {[%emt 0:01:11]} 34. Rxd8+ {[%emt 0:10:52]} Qxd8 {[%emt 0:00:31]} 35. f4 {[%emt 0:01:58]} Ng4 {[%emt 0:00:49]} 36. Nc4 {[%emt 0:00:32]} Qd4 {[%emt 0:00:31]} 37. e5 {[%emt 0:05:01]} b5 {[%emt 0:01:55]} 38. Nd6 {[%emt 0:00:36]} Qd5+ {[%emt 0:02:12]} 39. Kg1 {[%emt 0:00:46]} Qd4+ {[%emt 0:00:15]} 40. Kg2 {[%emt 0:00:08]} Qd5+ 1/2-1/2

[Event "Skalica Open 2019"]
[Site "Skalica"]
[Date "2019.08.29"]
[Round "7.1"]
[White "Pulpan, Jakub"]
[Black "Maiorov, Nikita"]
[Result "1/2-1/2"]
[ECO "C84"]
[WhiteElo "2397"]
[BlackElo "2512"]
[Annotator "ChessBase"]
[PlyCount "21"]
[EventDate "2019.08.25"]
[EventType "swiss"]
[EventCountry "SVK"]
[SourceTitle "playchess.com"]
[Source "ChessBase"]
[SourceQuality "1"]
[TimeControl "40/5400+30:1800+30"]

1. e4 {[%emt 0:00:00]} e5 {[%emt 0:02:08]} 2. Nf3 {[%emt 0:00:00]} Nc6 {[%emt 0:00:04]} 3. Bb5 {[%emt 0:00:00]} a6 {[%emt 0:00:09]} 4. Ba4 {[%emt 0:00:04]} Nf6 {[%emt 0:00:06]} 5. O-O {[%emt 0:00:12]} Be7 {[%emt 0:00:08]} 6. d3 {[%emt 0:00:12]} b5 {[%emt 0:00:36]} 7. Bb3 {[%emt 0:00:05]} O-O {[%emt 0:00:10]} 8. Nc3 {[%emt 0:00:18]} d6 {[%emt 0:00:10]} 9. a3 {[%emt 0:00:04]} Nb8 {[%emt 0:05:09]} 10. Ne2 {[%emt 0:03:57]} Nbd7 {[%emt 0:02:25]} 11. Ng3 {[%emt 0:00:37]} 1/2-1/2

[Event "Skalica Open 2019"]
[Site "Skalica"]
[Date "2019.08.29"]
[Round "7.2"]
[White "Demidov, Mikhail"]
[Black "Manik, Mikulas"]
[Result "1-0"]
[ECO "B51"]
[WhiteElo "2556"]
[BlackElo "2374"]
[Annotator "ChessBase"]
[PlyCount "157"]
[EventDate "2019.08.25"]
[EventType "swiss"]
[EventCountry "SVK"]
[SourceTitle "playchess.com"]
[Source "ChessBase"]
[SourceQuality "1"]
[TimeControl "40/5400+30:1800+30"]

1. Nf3 {[%emt 0:00:19]} d6 {[%emt 0:00:00]} 2. e4 {[%emt 0:00:59]} c5 {[%emt 0:00:00]} 3. Bb5+ {[%emt 0:00:07]} Nd7 {[%emt 0:00:00]} 4. O-O {[%emt 0:00:13]} a6 {[%emt 0:00:54]} 5. Bd3 {[%emt 0:00:05]} Ngf6 {[%emt 0:03:17]} 6. c3 {[%emt 0:01:20]} e5 {[%emt 0:10:27]} 7. Bc2 {[%emt 0:01:02]} b5 {[%emt 0:00:21]} 8. a4 {[%emt 0:01:45]} Bb7 {[%emt 0:00:05]} 9. Qe2 {[%emt 0:00:18]} Be7 {[%emt 0:00:42]} 10. d4 {[%emt 0:00:57]} O-O {[%emt 0:09:12]} 11. d5 {[%emt 0:04:08]} c4 {[%emt 0:05:40]} 12. Na3 {[%emt 0:02:03]} Nc5 {[%emt 0:01:47]} 13. Bd2 {[%emt 0:02:38]} Qd7 {[%emt 0:07:32]} 14. Rfd1 {[%emt 0:04:36]} h6 {[%emt 0:11:49]} 15. Be1 {[%emt 0:01:24]} Rfb8 {[%emt 0:05:46]} 16. Nd2 {[%emt 0:01:28]} Bc8 {[%emt 0:00:44]} 17. a5 {[%emt 0:05:47]} Nb7 {[%emt 0:08:05]} 18. b4 {[%emt 0:03:06]} cxb3 {[%emt 0:01:04]} 19. Nxb3 {[%emt 0:00:18]} Nc5 {[%emt 0:00:04]} 20. f3 {[%emt 0:03:09]} Qc7 {[%emt 0:03:59]} 21. Nb1 {[%emt 0:02:04]} Nxb3 {[%emt 0:02:45]} 22. Bxb3 {[%emt 0:01:03]} Nd7 {[%emt 0:00:02]} 23. Bc2 {[%emt 0:02:01]} Nc5 {[%emt 0:00:32]} 24. Nd2 {[%emt 0:02:22]} Bd7 {[%emt 0:04:11]} 25. Rdc1 {[%emt 0:03:01]} Na4 {[%emt 0:04:27]} 26. c4 {[%emt 0:06:26]} Qxa5 {[%emt 0:01:16]} 27. c5 {[%emt 0:00:59]} dxc5 {[%emt 0:02:57]} 28. Nc4 {[%emt 0:01:30]} Qc7 {[%emt 0:00:18]} 29. Bxa4 {[%emt 0:00:53]} bxc4 {[%emt 0:00:28]} 30. Bxd7 {[%emt 0:00:30]} Qxd7 {[%emt 0:00:06]} 31. Rxc4 {[%emt 0:01:24]} Rb6 {[%emt 0:02:41]} 32. Rca4 {[%emt 0:02:32]} Qb7 {[%emt 0:03:24]} 33. Kf1 {[%emt 0:16:21]} Bd6 {[%emt 0:01:05]} 34. Qc4 {[%emt 0:00:27]} Rb5 {[%emt 0:00:42]} 35. Ra5 {[%emt 0:00:45]} Rb6 {[%emt 0:00:55]} 36. h3 {[%emt 0:02:37]} Kh7 {[%emt 0:02:57]} 37. Kg1 {[%emt 0:01:53]} Rb1 {[%emt 0:00:31]} 38. Kh2 {[%emt 0:01:39]} Rxa1 {[%emt 0:00:36]} 39. Rxa1 {[%emt 0:00:02]} f6 {[%emt 0:00:53]} 40. Qa2 {[%emt 0:02:21]} a5 {[%emt 0:03:35]} 41. Qc4 {[%emt 0:31:52]} Qb6 {[%emt 0:33:14]} 42. Qa4 {[%emt 0:04:01]} Ra6 {[%emt 0:00:00]} 43. Qd7 {[%emt 0:00:00]} Ra7 {[%emt 0:00:00]} 44. Qa4 {[%emt 0:00:00]} Ra6 {[%emt 0:00:00]} 45. h4 {[%emt 0:00:00]} Qb7 {[%emt 0:00:00]} 46. Qc4 {[%emt 0:00:00]} Qb6 {[%emt 0:00:00]} 47. Bc3 {[%emt 0:00:00]} Ra7 {[%emt 0:00:00]} 48. Ra2 {[%emt 0:00:00]} Ra8 {[%emt 0:00:00]} 49. Qa4 {[%emt 0:00:00]} Qd8 {[%emt 0:00:00]} 50. Rb2 {[%emt 0:00:00]} c4 {[%emt 0:00:00]} 51. Be1 {[%emt 0:00:00]} Bb4 {[%emt 0:00:00]} 52. Bxb4 {[%emt 0:00:00]} axb4 {[%emt 0:00:00]} 53. Qxb4 {[%emt 0:00:00]} Rc8 {[%emt 0:00:00]} 54. Rc2 {[%emt 0:00:00]} Qc7 {[%emt 0:00:00]} 55. Rc3 {[%emt 0:00:00]} Kh8 {[%emt 0:00:00]} 56. Qb5 {[%emt 0:00:00]} Kh7 {[%emt 0:00:10]} 57. Kg3 {[%emt 0:00:00]} Kh8 {[%emt 0:01:06]} 58. Qa6 {[%emt 0:00:00]} Qc5 {[%emt 0:01:37]} 59. Qe6 {[%emt 0:01:19]} Rb8 {[%emt 0:01:48]} 60. Rc2 {[%emt 0:05:37]} Rc8 {[%emt 0:02:57]} 61. Rc3 {[%emt 0:04:59]} Rb8 {[%emt 0:00:03]} 62. Qc6 {[%emt 0:02:28]} Qg1 {[%emt 0:00:27]} 63. Qxc4 {[%emt 0:00:48]} Qe1+ {[%emt 0:00:09]} 64. Kg4 {[%emt 0:00:46]} h5+ {[%emt 0:00:19]} 65. Kf5 {[%emt 0:04:45]} Qxh4 {[%emt 0:00:15]} 66. Ke6 {[%emt 0:04:14]} f5 {[%emt 0:00:06]} 67. d6 {[%emt 0:01:13]} Qf6+ {[%emt 0:00:32]} 68. Kd5 {[%emt 0:00:16]} fxe4 {[%emt 0:00:12]} 69. Qc7 {[%emt 0:01:12]} Rb2 {[%emt 0:02:25]} 70. fxe4 {[%emt 0:02:26]} Rd2+ {[%emt 0:00:43]} 71. Kc6 {[%emt 0:00:16]} Kh7 {[%emt 0:00:23]} 72. Qd7 {[%emt 0:01:04]} Kh6 {[%emt 0:01:13]} 73. Rc5 {[%emt 0:01:05]} Qf1 {[%emt 0:00:52]} 74. Qe6+ {[%emt 0:00:11]} g6 {[%emt 0:00:10]} 75. Qxe5 {[%emt 0:00:40]} Qa6+ {[%emt 0:00:22]} 76. Kd7 {[%emt 0:00:06]} Qa7+ {[%emt 0:00:14]} 77. Rc7 {[%emt 0:00:56]} Qa4+ {[%emt 0:00:06]} 78. Ke7 {[%emt 0:00:15]} Qb4 {[%emt 0:00:16]} 79. Qf4+ {[%emt 0:00:09]} 1-0

[Event "Skalica Open 2019"]
[Site "Skalica"]
[Date "2019.08.29"]
[Round "7.3"]
[White "Lanka, Zigurds"]
[Black "Potapov, Pavel"]
[Result "1/2-1/2"]
[ECO "B32"]
[WhiteElo "2395"]
[BlackElo "2496"]
[Annotator "ChessBase"]
[PlyCount "25"]
[EventDate "2019.08.25"]
[EventType "swiss"]
[EventCountry "SVK"]
[SourceTitle "playchess.com"]
[Source "ChessBase"]
[SourceQuality "1"]
[TimeControl "40/5400+30:1800+30"]

1. e4 {[%emt 0:00:00]} c5 {[%emt 0:00:00]} 2. Nf3 {[%emt 0:00:00]} Nc6 {[%emt 0:00:00]} 3. d4 {[%emt 0:00:00]} cxd4 {[%emt 0:00:00]} 4. Nxd4 {[%emt 0:00:00]} e5 {[%emt 0:00:00]} 5. Nb5 {[%emt 0:00:11]} d6 {[%emt 0:00:01]} 6. N1c3 {[%emt 0:00:08]} a6 {[%emt 0:00:12]} 7. Na3 {[%emt 0:00:06]} Be7 {[%emt 0:00:13]} 8. Nc4 {[%emt 0:00:11]} b5 {[%emt 0:00:31]} 9. Ne3 {[%emt 0:00:07]} Nf6 {[%emt 0:00:32]} 10. a3 {[%emt 0:00:22]} O-O {[%emt 0:01:01]} 11. g3 {[%emt 0:00:26]} Be6 {[%emt 0:09:59]} 12. Bg2 {[%emt 0:00:26]} Rc8 {[%emt 0:02:08]} 13. O-O {[%emt 0:00:26]} 1/2-1/2

[Event "Skalica Open 2019"]
[Site "Skalica"]
[Date "2019.08.29"]
[Round "7.4"]
[White "Pechac, Jergus"]
[Black "Sahidi, Samir"]
[Result "1/2-1/2"]
[ECO "D02"]
[WhiteElo "2471"]
[BlackElo "2366"]
[Annotator "ChessBase"]
[PlyCount "183"]
[EventDate "2019.08.25"]
[EventType "swiss"]
[EventCountry "SVK"]
[SourceTitle "playchess.com"]
[Source "ChessBase"]
[SourceQuality "1"]
[TimeControl "40/5400+30:1800+30"]

1. d4 {[%emt 0:01:21]} d5 {[%emt 0:00:02]} 2. Nf3 {[%emt 0:00:17]} c5 {[%emt 0:01:09]} 3. c4 {[%emt 0:00:07]} cxd4 {[%emt 0:01:19]} 4. cxd5 {[%emt 0:00:07]} Nf6 {[%emt 0:01:22]} 5. Qxd4 {[%emt 0:05:58]} Qxd5 {[%emt 0:01:04]} 6. Nc3 {[%emt 0:00:25]} Qxd4 {[%emt 0:01:18]} 7. Nxd4 {[%emt 0:00:12]} a6 {[%emt 0:01:55]} 8. Bg5 {[%emt 0:00:07]} Nbd7 {[%emt 0:03:53]} 9. g3 {[%emt 0:00:44]} e6 {[%emt 0:04:29]} 10. Bg2 {[%emt 0:00:26]} h6 {[%emt 0:03:40]} 11. Bd2 {[%emt 0:01:48]} Bb4 {[%emt 0:08:20]} 12. a3 {[%emt 0:01:48]} Ba5 {[%emt 0:01:11]} 13. O-O {[%emt 0:01:28]} O-O {[%emt 0:02:09]} 14. Nb3 {[%emt 0:03:41]} Bc7 {[%emt 0:06:08]} 15. Rac1 {[%emt 0:01:11]} Rb8 {[%emt 0:00:57]} 16. Na4 {[%emt 0:01:32]} Bd6 {[%emt 0:00:55]} 17. Be3 {[%emt 0:05:48]} Nd5 {[%emt 0:03:33]} 18. Bxd5 {[%emt 0:01:22]} exd5 {[%emt 0:00:08]} 19. Rfd1 {[%emt 0:00:40]} b5 {[%emt 0:02:34]} 20. Nc3 {[%emt 0:05:02]} b4 {[%emt 0:01:13]} 21. axb4 {[%emt 0:00:06]} Rxb4 {[%emt 0:00:48]} 22. Na5 {[%emt 0:00:10]} Rxb2 {[%emt 0:04:09]} 23. Nxd5 {[%emt 0:00:31]} Rxe2 {[%emt 0:18:53]} 24. Nc4 {[%emt 0:00:26]} Bc5 {[%emt 0:02:13]} 25. Bxc5 {[%emt 0:04:32]} Nxc5 {[%emt 0:00:10]} 26. Nd6 {[%emt 0:05:51]} Ne4 {[%emt 0:03:15]} 27. Nf4 {[%emt 0:07:00]} Nxd6 {[%emt 0:02:16]} 28. Nxe2 {[%emt 0:00:05]} Nb5 {[%emt 0:03:29]} 29. Rd2 {[%emt 0:03:14]} Re8 {[%emt 0:03:17]} 30. Nd4 {[%emt 0:01:34]} Bd7 {[%emt 0:02:45]} 31. Nc6 {[%emt 0:03:42]} Bf5 {[%emt 0:04:25]} 32. Ra1 {[%emt 0:01:38]} Be4 {[%emt 0:03:48]} 33. Rxa6 {[%emt 0:03:05]} Bf3 {[%emt 0:03:11]} 34. Rd8 {[%emt 0:01:14]} Bxc6 {[%emt 0:00:37]} 35. Raa8 {[%emt 0:00:13]} Rxd8 {[%emt 0:00:14]} 36. Rxd8+ {[%emt 0:00:20]} Kh7 {[%emt 0:00:04]} 37. h4 {[%emt 0:01:29]} Bf3 {[%emt 0:01:24]} 38. Rd3 {[%emt 0:00:17]} Bg4 {[%emt 0:01:13]} 39. Kh2 {[%emt 0:00:44]} Be6 {[%emt 0:00:14]} 40. Kg1 {[%emt 0:00:37]} Nc7 {[%emt 0:00:10]} 41. Ra3 {[%emt 0:30:21]} Nd5 {[%emt 0:30:09]} 42. Rb3 {[%emt 0:00:26]} Nf6 {[%emt 0:01:54]} 43. Ra3 {[%emt 0:00:19]} g6 {[%emt 0:03:35]} 44. Ra5 {[%emt 0:00:32]} Kg7 {[%emt 0:01:06]} 45. Ra4 {[%emt 0:00:05]} Nd7 {[%emt 0:00:00]} 46. Ra5 {[%emt 0:00:00]} Kf6 {[%emt 0:00:00]} 47. Ra4 {[%emt 0:00:00]} Ne5 {[%emt 0:00:00]} 48. Rf4+ {[%emt 0:00:00]} Ke7 {[%emt 0:00:00]} 49. Ra4 {[%emt 0:00:00]} Nf3+ {[%emt 0:00:00]} 50. Kg2 {[%emt 0:00:00]} Bd5 {[%emt 0:00:00]} 51. Kf1 {[%emt 0:00:00]} Ke6 {[%emt 0:00:00]} 52. Rb4 {[%emt 0:00:00]} Ke5 {[%emt 0:00:00]} 53. Rb8 {[%emt 0:00:00]} h5 {[%emt 0:00:00]} 54. Rb4 {[%emt 0:00:00]} Bc4+ {[%emt 0:00:00]} 55. Kg2 {[%emt 0:00:00]} Ne1+ {[%emt 0:00:00]} 56. Kg1 {[%emt 0:00:00]} Kd4 {[%emt 0:00:00]} 57. Ra4 {[%emt 0:00:00]} Kd3 {[%emt 0:00:00]} 58. Rb4 {[%emt 0:00:00]} Nf3+ {[%emt 0:00:00]} 59. Kg2 {[%emt 0:00:00]} Nd2 {[%emt 0:00:00]} 60. f4 {[%emt 0:00:00]} Ke3 {[%emt 0:00:00]} 61. Rb2 {[%emt 0:00:00]} Bd5+ {[%emt 0:00:00]} 62. Kh3 {[%emt 0:00:00]} Nf3 {[%emt 0:00:00]} 63. Rb1 {[%emt 0:00:00]} Nd4 {[%emt 0:00:00]} 64. Kh2 {[%emt 0:00:00]} Be4 {[%emt 0:00:00]} 65. Ra1 {[%emt 0:00:00]} Kf3 {[%emt 0:00:00]} 66. Ra5 {[%emt 0:00:19]} Bf5 {[%emt 0:00:00]} 67. Ra4 {[%emt 0:00:23]} Nc2 {[%emt 0:00:00]} 68. Ra7 {[%emt 0:00:14]} Ne3 {[%emt 0:00:00]} 69. Ra3 {[%emt 0:00:05]} Bc2 {[%emt 0:00:00]} 70. Kg1 {[%emt 0:00:44]} f6 {[%emt 0:00:00]} 71. Rc3 {[%emt 0:00:38]} Ke2 {[%emt 0:00:00]} 72. Rc6 {[%emt 0:00:25]} Bd3 {[%emt 0:00:00]} 73. Rxf6 {[%emt 0:03:48]} Kf3 {[%emt 0:00:00]} 74. Rc6 {[%emt 0:00:53]} Nd1 {[%emt 0:01:59]} 75. Kh2 {[%emt 0:05:19]} Be4 {[%emt 0:04:19]} 76. Ra6 {[%emt 0:01:52]} Kg4 {[%emt 0:00:19]} 77. Ra3 {[%emt 0:01:27]} Nf2 {[%emt 0:00:55]} 78. Ra2 {[%emt 0:01:34]} Nd3 {[%emt 0:00:23]} 79. Ra1 {[%emt 0:00:21]} Nc5 {[%emt 0:01:14]} 80. Ra5 {[%emt 0:00:34]} Nb3 {[%emt 0:01:10]} 81. Ra3 {[%emt 0:05:48]} Nd2 {[%emt 0:00:46]} 82. Kg1 {[%emt 0:01:48]} Bf3 {[%emt 0:00:14]} 83. Ra6 {[%emt 0:00:31]} Kxg3 {[%emt 0:01:14]} 84. Rxg6+ {[%emt 0:00:07]} Kxf4 {[%emt 0:01:06]} 85. Rg7 {[%emt 0:03:00]} Ne4 {[%emt 0:00:43]} 86. Rg8 {[%emt 0:00:17]} Nd6 {[%emt 0:00:22]} 87. Kf2 {[%emt 0:00:47]} Nf5 {[%emt 0:00:13]} 88. Rb8 {[%emt 0:03:39]} Be4 {[%emt 0:00:40]} 89. Rb5 {[%emt 0:00:09]} Ng3 {[%emt 0:01:04]} 90. Rg5 {[%emt 0:00:32]} Nh1+ {[%emt 0:00:27]} 91. Kg1 {[%emt 0:00:12]} Ng3 {[%emt 0:00:06]} 92. Kf2 {[%emt 0:00:05]} 1/2-1/2

[Event "Skalica Open 2019"]
[Site "Skalica"]
[Date "2019.08.29"]
[Round "7.5"]
[White "Danada, Tomas"]
[Black "Vykouk, Jan"]
[Result "0-1"]
[ECO "E94"]
[WhiteElo "2266"]
[BlackElo "2477"]
[Annotator "ChessBase"]
[PlyCount "70"]
[EventDate "2019.08.25"]
[EventType "swiss"]
[EventCountry "SVK"]
[SourceTitle "playchess.com"]
[Source "ChessBase"]
[SourceQuality "1"]
[TimeControl "40/5400+30:1800+30"]

1. d4 {[%emt 0:00:00]} Nf6 {[%emt 0:00:00]} 2. c4 {[%emt 0:00:00]} d6 {[%emt 0:00:00]} 3. Nc3 {[%emt 0:00:00]} Nbd7 {[%emt 0:00:00]} 4. Nf3 {[%emt 0:00:06]} g6 {[%emt 0:00:03]} 5. e4 {[%emt 0:00:40]} e5 {[%emt 0:00:56]} 6. Be2 {[%emt 0:02:07]} Bg7 {[%emt 0:00:06]} 7. O-O {[%emt 0:00:11]} O-O {[%emt 0:00:06]} 8. Qc2 {[%emt 0:00:07]} c6 {[%emt 0:00:14]} 9. Rd1 {[%emt 0:00:05]} Qe7 {[%emt 0:00:06]} 10. Bf1 {[%emt 0:02:21]} exd4 {[%emt 0:00:46]} 11. Nxd4 {[%emt 0:00:10]} Re8 {[%emt 0:00:17]} 12. f3 {[%emt 0:01:05]} a5 {[%emt 0:00:58]} 13. Nde2 {[%emt 0:02:09]} Ne5 {[%emt 0:03:43]} 14. Nf4 {[%emt 0:08:16]} g5 {[%emt 0:01:29]} 15. Nd3 {[%emt 0:00:16]} g4 {[%emt 0:00:05]} 16. Nxe5 {[%emt 0:01:06]} dxe5 {[%emt 0:00:05]} 17. Be3 {[%emt 0:00:38]} gxf3 {[%emt 0:01:39]} 18. gxf3 {[%emt 0:00:02]} Nh5 {[%emt 0:00:12]} 19. Na4 {[%emt 0:08:15]} Kh8 {[%emt 0:00:48]} 20. Nb6 {[%emt 0:00:45]} Rg8 {[%emt 0:05:53]} 21. Nxa8 {[%emt 0:08:01]} Bh6+ {[%emt 0:00:44]} 22. Kf2 {[%emt 0:00:10]} Qh4+ {[%emt 0:02:23]} 23. Ke2 {[%emt 0:02:24]} Qxh2+ {[%emt 0:00:10]} 24. Kd3 {[%emt 0:00:57]} Qxc2+ {[%emt 0:00:07]} 25. Kxc2 {[%emt 0:00:02]} Bxe3 {[%emt 0:00:06]} 26. Rd3 {[%emt 0:03:53]} Bd4 {[%emt 0:00:09]} 27. Ra3 {[%emt 0:01:50]} Rg1 {[%emt 0:00:39]} 28. Rd1 {[%emt 0:02:32]} Ng3 {[%emt 0:03:18]} 29. Bd3 {[%emt 0:00:46]} Rxd1 {[%emt 0:00:04]} 30. Kxd1 {[%emt 0:00:06]} h5 {[%emt 0:00:07]} 31. Be2 {[%emt 0:06:33]} h4 {[%emt 0:02:07]} 32. f4 {[%emt 0:00:21]} exf4 {[%emt 0:00:50]} 33. Bf3 {[%emt 0:08:46]} h3 {[%emt 0:00:20]} 34. Rd3 {[%emt 0:01:58]} h2 {[%emt 0:00:19]} 35. Rd2 {[%emt 0:00:13]} Nf1 {[%emt 0:01:50]} 0-1

[Event "Skalica Open 2019"]
[Site "Skalica"]
[Date "2019.08.29"]
[Round "7.6"]
[White "Kuznetsov, Mikhail V."]
[Black "Czebe, Attila"]
[Result "0-1"]
[ECO "A41"]
[WhiteElo "2261"]
[BlackElo "2413"]
[Annotator "NA"]
[PlyCount "58"]
[EventDate "2019.08.25"]
[EventType "swiss"]
[EventCountry "SVK"]
[SourceTitle "playchess.com"]
[Source "ChessBase"]
[SourceQuality "1"]
[TimeControl "40/5400+30:1800+30"]

1. d4 {[%emt 0:02:31]} d6 {[%emt 0:00:18]} 2. c4 {[%emt 0:00:08]} e5 {[%emt 0:00:03]} 3. Nc3 {[%emt 0:00:05]} exd4 {[%emt 0:00:23]} 4. Qxd4 {[%emt 0:00:05]} Nf6 {[%emt 0:00:05]} 5. g3 {[%emt 0:00:13]} Nc6 {[%emt 0:00:21]} 6. Qd2 {[%emt 0:00:29]} Be6 {[%emt 0:02:12]} 7. Nd5 {[%emt 0:00:29]} g6 {[%emt 0:06:17]} 8. Nf3 {[%emt 0:01:19]} Bg7 {[%emt 0:00:11]} 9. Bg2 {[%emt 0:00:11]} O-O {[%emt 0:00:32]} 10. O-O {[%emt 0:00:14]} Re8 {[%emt 0:03:57]} 11. h3 {[%emt 0:06:27]} Ne5 {[%emt 0:03:05]} 12. Nxe5 {[%emt 0:04:03]} dxe5 {[%emt 0:00:59]} 13. Nxf6+ {[%emt 0:07:12]} Qxf6 {[%emt 0:01:37]} 14. Qb4 {[%emt 0:01:04]} e4 {[%emt 0:01:03]} 15. Rb1 {[%emt 0:04:38]} b6 {[%emt 0:00:32]} 16. b3 {[%emt 0:02:11]} c5 {[%emt 0:01:20]} 17. Qa4 {[%emt 0:01:01]} Qe7 {[%emt 0:01:36]} 18. Rd1 {[%emt 0:10:24]} f5 {[%emt 0:08:00]} 19. Bb2 {[%emt 0:03:35]} Red8 {[%emt 0:05:44]} 20. Bxg7 {[%emt 0:00:40]} Kxg7 {[%emt 0:00:09]} 21. e3 {[%emt 0:01:52]} Rd6 {[%emt 0:03:41]} 22. Bf1 {[%emt 0:02:21]} Rad8 {[%emt 0:00:19]} 23. Be2 {[%emt 0:00:13]} Rd2 {[%emt 0:04:55]} 24. Kf1 {[%emt 0:09:32]} f4 {[%emt 0:03:03]} 25. Rxd2 {[%emt 0:05:56]} Rxd2 {[%emt 0:00:37]} 26. gxf4 {[%emt 0:02:04]} Bxh3+ {[%emt 0:00:38]} 27. Ke1 {[%emt 0:00:05]} Qd8 {[%emt 0:00:10]} 28. Bf1 {[%emt 0:05:25]} Bxf1 {[%emt 0:00:16]} 29. Kxf1 {[%emt 0:00:02]} Qh4 {[%emt 0:00:24]} 0-1

[Event "Skalica Open 2019"]
[Site "Skalica"]
[Date "2019.08.29"]
[Round "7.7"]
[White "Komliakov, Viktor"]
[Black "Matejovic, Juraj"]
[Result "1/2-1/2"]
[ECO "B40"]
[WhiteElo "2366"]
[BlackElo "2237"]
[Annotator "NA"]
[PlyCount "42"]
[EventDate "2019.08.25"]
[EventType "swiss"]
[EventCountry "SVK"]
[SourceTitle "playchess.com"]
[Source "ChessBase"]
[SourceQuality "1"]
[TimeControl "40/5400+30:1800+30"]

1. e4 {[%emt 0:02:47]} c5 {[%emt 0:02:47]} 2. Nf3 {[%emt 0:00:12]} e6 {[%emt 0:00:12]} 3. d3 {[%emt 0:02:50]} Nc6 {[%emt 0:01:47]} 4. g3 {[%emt 0:00:59]} Nf6 {[%emt 0:01:43]} 5. Bg2 {[%emt 0:00:23]} d5 {[%emt 0:00:50]} 6. Qe2 {[%emt 0:03:31]} Be7 {[%emt 0:00:55]} 7. O-O {[%emt 0:00:46]} O-O {[%emt 0:00:27]} 8. e5 {[%emt 0:04:23]} Nd7 {[%emt 0:00:11]} 9. c4 {[%emt 0:00:05]} a6 {[%emt 0:11:20]} 10. h4 {[%emt 0:18:23]} h6 {[%emt 0:02:47]} 11. Nc3 {[%emt 0:08:42]} Nd4 {[%emt 0:31:53]} 12. Nxd4 {[%emt 0:13:42]} cxd4 {[%emt 0:00:09]} 13. cxd5 {[%emt 0:00:11]} dxc3 {[%emt 0:03:10]} 14. d6 {[%emt 0:00:07]} cxb2 {[%emt 0:05:27]} 15. Bxb2 {[%emt 0:01:14]} Re8 {[%emt 0:01:20]} 16. dxe7 {[%emt 0:00:21]} Qxe7 {[%emt 0:00:04]} 17. a4 {[%emt 0:01:43]} Nb6 {[%emt 0:01:37]} 18. Ba3 {[%emt 0:07:01]} Qd8 {[%emt 0:00:16]} 19. Bd6 {[%emt 0:02:37]} Nd5 {[%emt 0:00:07]} 20. Qb2 {[%emt 0:02:54]} b6 {[%emt 0:02:36]} 21. Rfb1 {[%emt 0:09:10]} Bb7 {[%emt 0:00:16]} 1/2-1/2

[Event "Skalica Open 2019"]
[Site "Skalica"]
[Date "2019.08.29"]
[Round "7.8"]
[White "Istona, Martin"]
[Black "Aleksandrovskiy, Dmitriy"]
[Result "1/2-1/2"]
[ECO "B46"]
[WhiteElo "2235"]
[BlackElo "2284"]
[Annotator "NA"]
[PlyCount "26"]
[EventDate "2019.08.25"]
[EventType "swiss"]
[EventCountry "SVK"]
[SourceTitle "playchess.com"]
[Source "ChessBase"]
[SourceQuality "1"]
[TimeControl "40/5400+30:1800+30"]

1. e4 {[%emt 0:07:13]} c5 {[%emt 0:00:00]} 2. Nf3 {[%emt 0:00:15]} e6 {[%emt 0:00:00]} 3. d4 {[%emt 0:00:10]} cxd4 {[%emt 0:00:00]} 4. Nxd4 {[%emt 0:00:07]} Nc6 {[%emt 0:01:15]} 5. Nc3 {[%emt 0:00:27]} a6 {[%emt 0:00:08]} 6. Nxc6 {[%emt 0:00:53]} bxc6 {[%emt 0:00:17]} 7. Bd3 {[%emt 0:00:06]} d5 {[%emt 0:01:00]} 8. O-O {[%emt 0:00:29]} Nf6 {[%emt 0:00:17]} 9. Qf3 {[%emt 0:01:53]} Be7 {[%emt 0:08:15]} 10. Qg3 {[%emt 0:01:49]} Nh5 {[%emt 0:02:42]} 11. Qg4 {[%emt 0:07:32]} g6 {[%emt 0:00:11]} 12. Qe2 {[%emt 0:26:36]} O-O {[%emt 0:14:54]} 13. Na4 {[%emt 0:05:25]} Qc7 {[%emt 0:09:14]} 1/2-1/2